fUST/lending_fUST_20250820
["ID","MTS","AMOUNT","RATE_DAILY","PERIOD"]
[380234051,1755621041525,-999.33,0.00019178,2]
[380234052,1755621041534,-480.0,0.00019178,2]
[380234053,1755621041543,-440.0,0.00019178,2]
[380234054,1755621041553,-3297.99,0.00019178,2]
[380234055,1755621041566,-241.17545315,0.00019178,2]
[380234061,1755621041711,-510.35,0.00019178,2]
[380234062,1755621041720,-571.61287305,0.00019178,2]
[380234063,1755621041730,-538.68,0.00019178,2]
[380234065,1755621041739,-480.0,0.00019178,2]
[380234066,1755621041748,-424.10346704,0.00019178,2]
[380234067,1755621041757,-480.0,0.00019178,2]
[380234068,1755621041767,-931.93,0.00019178,2]
[380234069,1755621041776,-480.0,0.00019178,2]
[380234070,1755621041785,-480.0,0.00019178,2]
[380234071,1755621041795,-480.0,0.00019178,2]
[380234072,1755621041804,-480.0,0.00019178,2]
[380234073,1755621041813,-750.88,0.00019178,2]
[380234074,1755621041822,-480.0,0.00019178,2]
[380234075,1755621041831,-930.32,0.00019178,2]
[380234076,1755621041840,-480.0,0.00019178,2]
[380234077,1755621041849,-480.0,0.00019178,2]
[380234078,1755621041859,-480.0,0.00019178,2]
[380234079,1755621041868,-269.19531519,0.00019178,2]
[380234080,1755621041877,-480.0,0.00019178,2]
[380234081,1755621041887,-676.14,0.00019178,2]
[380234082,1755621041896,-922.82,0.00019178,2]
[380234083,1755621041905,-480.0,0.00019178,2]
[380234084,1755621041914,-480.0,0.00019178,2]
[380234085,1755621041923,-480.0,0.00019178,2]
[380234086,1755621041933,-480.0,0.00019178,2]
[380234087,1755621041942,-480.0,0.00019178,2]
[380234088,1755621041951,-480.0,0.00019178,2]
[380234089,1755621041960,-499.11,0.00019178,2]
[380234090,1755621041970,-480.0,0.00019178,2]
[380234091,1755621041979,-480.0,0.00019178,2]
[380234092,1755621041988,-480.0,0.00019178,2]
[380234093,1755621041997,-652.05,0.00019178,2]
[380234094,1755621042006,-480.0,0.00019178,2]
[380234095,1755621042015,-480.0,0.00019178,2]
[380234096,1755621042024,-480.0,0.00019178,2]
[380234097,1755621042034,-480.0,0.00019178,2]
[380234098,1755621042043,-480.0,0.00019178,2]
[380234099,1755621042053,-480.0,0.00019178,2]
[380234100,1755621042062,-480.0,0.00019178,2]
[380234101,1755621042071,-480.0,0.00019178,2]
[380234102,1755621042081,-476.99026343,0.00019178,2]
[380234103,1755621042090,-1562.46,0.00019178,2]
[380234104,1755621042100,-767.65,0.00019178,2]
[380234105,1755621042109,-480.0,0.00019178,2]
[380234106,1755621042118,-6100.98,0.00019178,2]
[380234107,1755621042128,-480.0,0.00019178,2]
[380234108,1755621042137,-480.0,0.00019178,2]
[380234109,1755621042147,-480.0,0.00019178,2]
[380234110,1755621042157,-480.0,0.00019178,2]
[380234111,1755621042166,-480.0,0.00019178,2]
[380234112,1755621042175,-480.0,0.00019178,2]
[380234113,1755621042184,-480.0,0.00019178,2]
[380234114,1755621042194,-480.0,0.00019178,2]
[380234115,1755621042203,-378.60181615,0.00019178,2]
[380234116,1755621042212,-480.0,0.00019178,2]
[380234117,1755621042223,-500.0,0.00019178,2]
[380234118,1755621042232,-276.17,0.00019178,2]
[380234119,1755621042242,-480.0,0.00019178,2]
[380234120,1755621042251,-869.3,0.00019178,2]
[380234121,1755621042261,-480.0,0.00019178,2]
[380234122,1755621042270,-480.0,0.00019178,2]
[380234123,1755621042279,-422.53977297,0.00019178,2]
[380234124,1755621042289,-441.46385548,0.00019178,2]
[380234125,1755621042300,-480.0,0.00019178,2]
[380234126,1755621042309,-7148.4726288,0.00019178,2]
[380234127,1755621042319,-500.0,0.00019178,2]
[380234128,1755621042328,-1737.35525321,0.00019209,2]
[380234129,1755621042339,-151.0,0.000193,2]
[380234130,1755621042348,-340.0,0.0001931,2]
[380234131,1755621042358,-27641.67934074,0.00019329,2]
[380234132,1755621042367,-4087.72506411,0.0001941,2]
[380234133,1755621042376,-1737.35525321,0.00019439,2]
[380234134,1755621042386,-175.00713836,0.00019452,2]
[380234135,1755621042395,-316.96944826,0.00019452,2]
[380234136,1755621042405,-480.0,0.00019452,2]
[380234137,1755621042414,-480.0,0.00019452,2]
[380234138,1755621042425,-480.0,0.00019452,2]
[380234139,1755621042435,-480.0,0.00019452,2]
[380234140,1755621042445,-480.0,0.00019452,2]
[380234141,1755621042455,-480.0,0.00019452,2]
[380234142,1755621042465,-480.0,0.00019452,2]
[380234143,1755621042475,-480.0,0.00019452,2]
[380234144,1755621042485,-582.56240627,0.00019452,2]
[380234145,1755621042494,-480.0,0.00019452,2]
[380234146,1755621042504,-480.0,0.00019452,2]
[380234147,1755621042513,-480.0,0.00019452,2]
[380234148,1755621042522,-480.0,0.00019452,2]
[380234149,1755621042531,-480.0,0.00019452,2]
[380234150,1755621042541,-480.0,0.00019452,2]
[380234151,1755621042550,-567.39179579,0.00019452,2]
[380234152,1755621042564,-480.0,0.00019452,2]
[380234153,1755621042573,-2768.82,0.00019452,2]
[380234154,1755621042582,-480.0,0.00019452,2]
[380234155,1755621042594,-319.51452337,0.00019452,2]
[380234156,1755621042607,-480.0,0.00019452,2]
[380234157,1755621042616,-480.0,0.00019452,2]
[380234158,1755621042625,-480.0,0.00019452,2]
[380234159,1755621042635,-480.0,0.00019452,2]
[380234160,1755621042645,-480.0,0.00019452,2]
[380234161,1755621042654,-480.0,0.00019452,2]
[380234162,1755621042665,-272.32957479,0.00019452,2]
[380234163,1755621042674,-480.0,0.00019452,2]
[380234164,1755621042683,-280.84124652,0.00019452,2]
[380234165,1755621042693,-480.0,0.00019452,2]
[380234166,1755621042702,-480.0,0.00019452,2]
[380234167,1755621042712,-480.0,0.00019452,2]
[380234168,1755621042721,-480.0,0.00019452,2]
[380234169,1755621042730,-480.0,0.00019452,2]
[380234170,1755621042740,-480.0,0.00019452,2]
[380234171,1755621042749,-480.0,0.00019452,2]
[380234172,1755621042758,-480.0,0.00019452,2]
[380234173,1755621042767,-489.13,0.00019452,2]
[380234174,1755621042776,-480.0,0.00019452,2]
[380234175,1755621042786,-1050.98,0.00019452,2]
[380234176,1755621042795,-480.0,0.00019452,2]
[380234177,1755621042804,-499.554805,0.00019452,2]
[380234178,1755621042813,-480.0,0.00019452,2]
[380234179,1755621042822,-480.0,0.00019452,2]
[380234180,1755621042832,-319.99548297,0.00019452,2]
[380234181,1755621042841,-480.0,0.00019452,2]
[380234182,1755621042850,-480.0,0.00019452,2]
[380234183,1755621042859,-467.52566895,0.00019452,2]
[380234184,1755621042870,-480.0,0.00019452,2]
[380234185,1755621042879,-2558.28,0.00019452,2]
[380234186,1755621042888,-480.0,0.00019452,2]
[380234187,1755621042897,-480.0,0.00019452,2]
[380234188,1755621042907,-480.0,0.00019452,2]
[380234189,1755621042916,-480.0,0.00019452,2]
[380234190,1755621042925,-480.0,0.00019452,2]
[380234191,1755621042934,-480.0,0.00019452,2]
[380234192,1755621042943,-480.0,0.00019452,2]
[380234193,1755621042952,-724.98,0.00019452,2]
[380234194,1755621042961,-480.0,0.00019452,2]
[380234195,1755621042971,-1116.34,0.00019452,2]
[380234196,1755621042980,-463.23249831,0.00019452,2]
[380234198,1755621042989,-340.0,0.00019452,2]
[380234199,1755621042998,-480.0,0.00019452,2]
[380234200,1755621043008,-480.0,0.00019452,2]
[380234201,1755621043017,-480.0,0.00019452,2]
[380234202,1755621043026,-480.0,0.00019452,2]
[380234203,1755621043035,-480.0,0.00019452,2]
[380234205,1755621043044,-430.14023818,0.00019452,2]
[380234206,1755621043053,-480.0,0.00019452,2]
[380234207,1755621043062,-480.0,0.00019452,2]
[380234208,1755621043071,-480.0,0.00019452,2]
[380234209,1755621043085,-480.0,0.00019452,2]
[380234210,1755621043094,-480.0,0.00019452,2]
[380234213,1755621043103,-480.0,0.00019452,2]
[380234214,1755621043113,-480.0,0.00019452,2]
[380234215,1755621043122,-480.0,0.00019452,2]
[380234216,1755621043131,-480.0,0.00019452,2]
[380234217,1755621043140,-1160.94,0.00019452,2]
[380234218,1755621043150,-480.0,0.00019452,2]
[380234219,1755621043159,-215.65462991,0.00019452,2]
[380234220,1755621043169,-480.0,0.00019452,2]
[380234221,1755621043178,-178.333883,0.00019452,2]
[380234222,1755621043187,-480.0,0.00019452,2]
[380234223,1755621043196,-480.0,0.00019452,2]
[380234224,1755621043206,-480.0,0.00019452,2]
[380234225,1755621043215,-480.0,0.00019452,2]
[380234226,1755621043224,-469.91576214,0.00019452,2]
[380234227,1755621043233,-443.66953913,0.00019452,2]
[380234228,1755621043243,-480.0,0.00019452,2]
[380234229,1755621043253,-480.0,0.00019452,2]
[380234230,1755621043262,-463.39535369,0.00019452,2]
[380234231,1755621043271,-480.0,0.00019452,2]
[380234232,1755621043280,-480.0,0.00019452,2]
[380234233,1755621043289,-997.92,0.00019452,2]
[380234234,1755621043298,-843.03,0.00019452,2]
[380234235,1755621043308,-482.37758965,0.00019452,2]
[380234236,1755621043317,-480.0,0.00019452,2]
[380234237,1755621043326,-480.0,0.00019452,2]
[380234238,1755621043335,-1373.92,0.00019452,2]
[380234239,1755621043344,-480.0,0.00019452,2]
[380234240,1755621043353,-151.49952695,0.00019452,2]
[380234241,1755621043362,-750.83,0.00019452,2]
[380234242,1755621043372,-480.0,0.00019452,2]
[380234243,1755621043382,-480.0,0.00019452,2]
[380234244,1755621043391,-480.0,0.00019452,2]
[380234245,1755621043401,-480.0,0.00019452,2]
[380234246,1755621043410,-480.0,0.00019452,2]
[380234247,1755621043419,-480.0,0.00019452,2]
[380234248,1755621043429,-480.0,0.00019452,2]
[380234249,1755621043438,-480.0,0.00019452,2]
[380234250,1755621043447,-460.0,0.00019452,2]
[380234251,1755621043457,-480.0,0.00019452,2]
[380234252,1755621043467,-325.50678981,0.00019452,2]
[380234253,1755621043476,-480.0,0.00019452,2]
[380234254,1755621043485,-480.0,0.00019452,2]
[380234256,1755621043494,-240.60915166,0.00019452,2]
[380234258,1755621043504,-480.0,0.00019452,2]
[380234260,1755621043513,-480.0,0.00019452,2]
[380234261,1755621043523,-480.0,0.00019452,2]
[380234262,1755621043532,-480.0,0.00019452,2]
[380234263,1755621043542,-480.0,0.00019452,2]
[380234264,1755621043552,-2019.24,0.00019452,2]
[380234265,1755621043566,-480.0,0.00019452,2]
[380234266,1755621043575,-480.0,0.00019452,2]
[380234267,1755621043585,-480.0,0.00019452,2]
[380234268,1755621043594,-480.0,0.00019452,2]
[380234269,1755621043604,-480.0,0.00019452,2]
[380234271,1755621043614,-480.0,0.00019452,2]
[380234272,1755621043623,-480.0,0.00019452,2]
[380234273,1755621043633,-1260.83,0.00019452,2]
[380234274,1755621043642,-480.0,0.00019452,2]
[380234276,1755621043652,-480.0,0.00019452,2]
[380234277,1755621043662,-480.0,0.00019452,2]
[380234278,1755621043671,-222.56183928,0.00019452,2]
[380234280,1755621043680,-480.0,0.00019452,2]
[380234281,1755621043689,-480.0,0.00019452,2]
[380234282,1755621043698,-480.0,0.00019452,2]
[380234284,1755621043708,-811.86,0.00019452,2]
[380234285,1755621043717,-480.0,0.00019452,2]
[380234286,1755621043726,-660.05,0.00019452,2]
[380234287,1755621043735,-907.39,0.00019452,2]
[380234289,1755621043744,-480.0,0.00019452,2]
[380234291,1755621043754,-480.0,0.00019452,2]
[380234292,1755621043763,-480.0,0.00019452,2]
[380234294,1755621043773,-480.0,0.00019452,2]
[380234295,1755621043782,-480.0,0.00019452,2]
[380234296,1755621043791,-480.0,0.00019452,2]
[380234297,1755621043801,-480.0,0.00019452,2]
[380234298,1755621043810,-712.05,0.00019452,2]
[380234299,1755621043819,-634.23,0.00019452,2]
[380234300,1755621043828,-480.0,0.00019452,2]
[380234301,1755621043837,-7704.91,0.00019452,2]
[380234302,1755621043847,-584.37,0.00019452,2]
[380234303,1755621043856,-480.0,0.00019452,2]
[380234304,1755621043866,-480.0,0.00019452,2]
[380234305,1755621043875,-400.0,0.00019452,2]
[380234306,1755621043885,-645.4,0.00019452,2]
[380234307,1755621043894,-480.0,0.00019452,2]
[380234308,1755621043905,-278.86156771,0.00019452,2]
[380234309,1755621043915,-480.0,0.00019452,2]
[380234310,1755621043924,-460.0,0.00019452,2]
[380234311,1755621043933,-480.0,0.00019452,2]
[380234312,1755621043942,-480.0,0.00019452,2]
[380234313,1755621043952,-480.0,0.00019452,2]
[380234314,1755621043962,-2137.91,0.00019452,2]
[380234315,1755621043971,-591.48,0.00019452,2]
[380234316,1755621043981,-480.0,0.00019452,2]
[380234317,1755621043990,-480.0,0.00019452,2]
[380234318,1755621044000,-480.0,0.00019452,2]
[380234319,1755621044009,-480.0,0.00019452,2]
[380234320,1755621044018,-480.0,0.00019452,2]
[380234321,1755621044028,-480.0,0.00019452,2]
[380234322,1755621044037,-2760.49,0.00019452,2]
[380234323,1755621044046,-480.0,0.00019452,2]
[380234324,1755621044055,-1063.88,0.00019452,2]
[380234325,1755621044065,-562.98,0.00019452,2]
[380234326,1755621044074,-480.0,0.00019452,2]
[380234327,1755621044084,-480.0,0.00019452,2]
[380234328,1755621044093,-480.0,0.00019452,2]
[380234329,1755621044102,-151.0,0.00019452,2]
[380234330,1755621044111,-2092.4,0.00019452,2]
[380234331,1755621044121,-480.0,0.00019452,2]
[380234332,1755621044130,-519.76,0.00019452,2]
[380234333,1755621044139,-894.78,0.00019452,2]
[380234334,1755621044149,-480.0,0.00019452,2]
[380234335,1755621044158,-480.0,0.00019452,2]
[380234337,1755621044168,-1905.63,0.00019452,2]
[380234338,1755621044177,-480.0,0.00019452,2]
[380234339,1755621044186,-380.78812035,0.00019452,2]
[380234341,1755621044196,-1071.88,0.00019452,2]
[380234342,1755621044205,-151.0,0.00019452,2]
[380234343,1755621044214,-151.0,0.00019452,2]
[380234344,1755621044224,-480.0,0.00019452,2]
[380234345,1755621044233,-1205.03,0.00019452,2]
[380234346,1755621044243,-480.0,0.00019452,2]
[380234347,1755621044253,-480.0,0.00019452,2]
[380234348,1755621044262,-460.0,0.00019452,2]
[380234349,1755621044272,-999.33,0.00019452,2]
[380234350,1755621044282,-510.35,0.00019452,2]
[380234351,1755621044291,-3297.99,0.00019452,2]
[380234352,1755621044302,-151.0,0.00019452,2]
[380234353,1755621044312,-151.0,0.00019452,2]
[380234354,1755621044321,-538.68,0.00019452,2]
[380234355,1755621044331,-480.0,0.00019452,2]
[380234356,1755621044341,-480.0,0.00019452,2]
[380234357,1755621044350,-931.93,0.00019452,2]
[380234358,1755621044360,-480.0,0.00019452,2]
[380234359,1755621044369,-480.0,0.00019452,2]
[380234360,1755621044379,-750.88,0.00019452,2]
[380234361,1755621044389,-480.0,0.00019452,2]
[380234362,1755621044399,-930.32,0.00019452,2]
[380234363,1755621044408,-480.0,0.00019452,2]
[380234364,1755621044419,-480.0,0.00019452,2]
[380234365,1755621044428,-460.0,0.00019452,2]
[380234366,1755621044437,-151.0,0.00019452,2]
[380234367,1755621044447,-480.0,0.00019452,2]
[380234368,1755621044457,-151.0,0.00019452,2]
[380234369,1755621044466,-676.14,0.00019452,2]
[380234370,1755621044475,-706.942681,0.00019452,2]
[380234371,1755621044484,-151.0,0.00019452,2]
[380234372,1755621044494,-922.82,0.00019452,2]
[380234373,1755621044503,-151.0,0.00019452,2]
[380234374,1755621044512,-151.0,0.00019452,2]
[380234375,1755621044522,-706.942681,0.00019452,2]
[380234376,1755621044531,-151.0,0.00019452,2]
[380234377,1755621044540,-706.942681,0.00019452,2]
[380234378,1755621044550,-151.0,0.00019452,2]
[380234379,1755621044562,-151.0,0.00019452,2]
[380234380,1755621044571,-706.942681,0.00019452,2]
[380234381,1755621044580,-380.594938,0.00019452,2]
[380234382,1755621044589,-151.0,0.00019452,2]
[380234383,1755621044600,-380.594938,0.00019452,2]
[380234384,1755621044609,-480.0,0.00019452,2]
[380234385,1755621044619,-380.594938,0.00019452,2]
[380234386,1755621044628,-151.0,0.00019452,2]
[380234387,1755621044639,-380.594938,0.00019452,2]
[380234388,1755621044648,-390.93956601,0.00019452,2]
[380234389,1755621044657,-151.0,0.00019452,2]
[380234390,1755621044668,-341.469098,0.00019452,2]
[380234391,1755621044678,-151.0,0.00019452,2]
[380234392,1755621044687,-341.469098,0.00019452,2]
[380234393,1755621044696,-240.0,0.00019452,2]
[380234394,1755621044706,-341.469098,0.00019452,2]
[380234395,1755621044715,-480.0,0.00019452,2]
[380234396,1755621044724,-151.0,0.00019452,2]
[380234397,1755621044735,-341.469098,0.00019452,2]
[380234398,1755621044744,-151.0,0.00019452,2]
[380234399,1755621044753,-499.11,0.00019452,2]
[380234400,1755621044762,-480.0,0.00019452,2]
[380234401,1755621044771,-151.0,0.00019452,2]
[380234402,1755621044780,-480.0,0.00019452,2]
[380234403,1755621044790,-151.000001,0.00019452,2]
[380234404,1755621044800,-652.05,0.00019452,2]
[380234405,1755621044809,-151.0,0.00019452,2]
[380234406,1755621044820,-195.95233093,0.00019452,2]
[380234407,1755621044829,-480.0,0.00019452,2]
[380234408,1755621044839,-480.0,0.00019452,2]
[380234409,1755621044848,-480.0,0.00019452,2]
[380234410,1755621044858,-151.0,0.00019452,2]
[380234411,1755621044867,-480.0,0.00019452,2]
[380234412,1755621044877,-151.0,0.00019452,2]
[380234413,1755621044886,-1562.46,0.00019452,2]
[380234414,1755621044896,-767.65,0.00019452,2]
[380234415,1755621044905,-480.0,0.00019452,2]
[380234416,1755621044917,-6100.98,0.00019452,2]
[380234417,1755621044927,-480.0,0.00019452,2]
[380234418,1755621044936,-171.012087,0.00019452,2]
[380234419,1755621044945,-151.0,0.00019452,2]
[380234420,1755621044955,-171.012087,0.00019452,2]
[380234421,1755621044964,-480.0,0.00019452,2]
[380234422,1755621044974,-171.012087,0.00019452,2]
[380234423,1755621044983,-171.012087,0.00019452,2]
[380234424,1755621044992,-151.0,0.00019452,2]
[380234425,1755621045133,-151.631436,0.00019452,2]
[380234426,1755621045143,-480.0,0.00019452,2]
[380234427,1755621045153,-151.0,0.00019452,2]
[380234428,1755621045162,-869.3,0.00019452,2]
[380234429,1755621045171,-480.0,0.00019452,2]
[380234430,1755621045180,-480.0,0.00019452,2]
[380234431,1755621045190,-500.0,0.00019452,2]
[380234432,1755621045199,-190.0,0.00019457,2]
[380234433,1755621045208,-500.0,0.00019473,2]
[380234434,1755621045217,-499.619,0.00019473,2]
[380234435,1755621045227,-500.0,0.00019473,2]
[380234436,1755621045236,-151.0,0.00019473,2]
[380234437,1755621045246,-151.0,0.00019473,2]
[380234438,1755621045255,-151.0,0.00019473,2]
[380234439,1755621045264,-151.0,0.00019473,2]
[380234440,1755621045273,-151.0,0.00019473,2]
[380234441,1755621045282,-151.0,0.00019473,2]
[380234442,1755621045292,-151.0,0.00019473,2]
[380234443,1755621045301,-151.0,0.00019473,2]
[380234444,1755621045311,-809.18269319,0.00019513,2]
[380234445,1755621045320,-214.08864739,0.00019513,2]
[380234446,1755621045329,-419.0,0.00019534,2]
[380234447,1755621045338,-300.0,0.0001956,20]
[380234448,1755621045347,-300.0,0.0001956,20]
[380234449,1755621045366,-300.0,0.0001956,20]
[380234450,1755621045377,-300.0,0.0001956,20]
[380234451,1755621045386,-300.0,0.0001956,20]
[380234452,1755621045396,-300.0,0.0001956,20]
[380234453,1755621045405,-300.0,0.0001956,20]
[380234454,1755621045415,-300.0,0.0001956,20]
[380234455,1755621045424,-300.0,0.0001956,20]
[380234456,1755621045433,-300.0,0.0001956,20]
[380234457,1755621045443,-300.0,0.0001956,20]
[380234458,1755621045452,-300.0,0.0001956,20]
[380234459,1755621045461,-300.0,0.0001956,20]
[380234460,1755621045470,-300.0,0.0001956,20]
[380234461,1755621045479,-300.0,0.0001956,20]
[380234462,1755621045488,-151.0,0.0001956,2]
[380234463,1755621045497,-167.210458,0.0001956,2]
[380234464,1755621045506,-151.0,0.0001956,2]
[380234465,1755621045515,-167.210458,0.0001956,2]
[380234466,1755621045524,-151.0,0.0001956,2]
[380234467,1755621045534,-167.210458,0.0001956,2]
[380234468,1755621045544,-151.0,0.0001956,2]
[380234469,1755621045553,-167.210458,0.0001956,2]
[380234470,1755621045567,-371.905518,0.0001956,2]
[380234471,1755621045577,-151.0,0.0001956,2]
[380234472,1755621045586,-371.905518,0.0001956,2]
[380234473,1755621045596,-371.905518,0.0001956,2]
[380234474,1755621045607,-151.0,0.0001956,2]
[380234475,1755621045617,-371.905518,0.0001956,2]
[380234476,1755621045627,-151.0,0.0001956,2]
[380234477,1755621045639,-151.0,0.0001956,2]
[380234478,1755621045648,-151.0,0.0001956,2]
[380234479,1755621045658,-151.000001,0.0001956,2]
[380234480,1755621045669,-600.0,0.00019561,20]
[380234481,1755621045679,-151.0,0.000196,2]
[380234482,1755621045689,-1737.35525321,0.0001967,2]
[380234483,1755621045698,-500.0,0.00019721,2]
[380234484,1755621045708,-1000.0,0.00019721,2]
[380234485,1755621045717,-834.68504628,0.00019721,2]
[380234486,1755621045727,-480.0,0.00019726,2]
[380234487,1755621045737,-480.0,0.00019726,2]
[380234488,1755621045746,-480.0,0.00019726,2]
[380234489,1755621045755,-480.0,0.00019726,2]
[380234490,1755621045765,-152.74143824,0.00019726,2]
[380234491,1755621045774,-480.0,0.00019726,2]
[380234492,1755621045783,-480.0,0.00019726,2]
[380234493,1755621045793,-480.0,0.00019726,2]
[380234494,1755621045802,-480.0,0.00019726,2]
[380234495,1755621045811,-480.0,0.00019726,2]
[380234496,1755621045822,-2768.82,0.00019726,2]
[380234497,1755621045832,-340.51794752,0.00019726,2]
[380234498,1755621045841,-480.0,0.00019726,2]
[380234499,1755621045850,-177.37312554,0.00019726,2]
[380234500,1755621045859,-480.0,0.00019726,2]
[380234501,1755621045869,-480.0,0.00019726,2]
[380234502,1755621045879,-480.0,0.00019726,2]
[380234503,1755621045888,-357.94484887,0.00019726,2]
[380234504,1755621045897,-480.0,0.00019726,2]
[380234505,1755621045906,-480.0,0.00019726,2]
[380234506,1755621045918,-480.0,0.00019726,2]
[380234507,1755621045927,-480.0,0.00019726,2]
[380234508,1755621045936,-480.0,0.00019726,2]
[380234509,1755621045945,-489.13,0.00019726,2]
[380234511,1755621045955,-480.0,0.00019726,2]
[380234513,1755621045964,-1050.98,0.00019726,2]
[380234514,1755621045974,-480.0,0.00019726,2]
[380234515,1755621045983,-191.10637339,0.00019726,2]
[380234516,1755621045992,-480.0,0.00019726,2]
[380234517,1755621046001,-480.0,0.00019726,2]
[380234518,1755621046010,-480.0,0.00019726,2]
[380234519,1755621046020,-2558.28,0.00019726,2]
[380234521,1755621046029,-480.0,0.00019726,2]
[380234522,1755621046038,-480.0,0.00019726,2]
[380234523,1755621046047,-480.0,0.00019726,2]
[380234524,1755621046057,-480.0,0.00019726,2]
[380234526,1755621046066,-480.0,0.00019726,2]
[380234527,1755621046075,-151.0,0.00019726,2]
[380234528,1755621046084,-480.0,0.00019726,2]
[380234529,1755621046094,-480.0,0.00019726,2]
[380234530,1755621046103,-151.0,0.00019726,2]
[380234531,1755621046112,-151.0,0.00019726,2]
[380234532,1755621046122,-151.0,0.00019726,2]
[380234533,1755621046131,-191.098864,0.00019726,2]
[380234534,1755621046141,-151.0,0.00019726,2]
[380234535,1755621046151,-724.98,0.00019726,2]
[380234536,1755621046161,-480.0,0.00019726,2]
[380234537,1755621046170,-1116.34,0.00019726,2]
[380234538,1755621046180,-151.0,0.00019726,2]
[380234539,1755621046189,-480.0,0.00019726,2]
[380234540,1755621046198,-151.0,0.00019726,2]
[380234541,1755621046207,-480.0,0.00019726,2]
[380234542,1755621046217,-535.34192878,0.00019726,2]
[380234543,1755621046226,-480.0,0.00019726,2]
[380234544,1755621046236,-151.0,0.00019726,2]
[380234545,1755621046245,-480.0,0.00019726,2]
[380234546,1755621046255,-151.0,0.00019726,2]
[380234547,1755621046264,-151.0,0.00019726,2]
[380234548,1755621046273,-480.0,0.00019726,2]
[380234549,1755621046282,-480.0,0.00019726,2]
[380234550,1755621046291,-191.97654889,0.00019726,2]
[380234552,1755621046301,-480.0,0.00019726,2]
[380234553,1755621046311,-480.0,0.00019726,2]
[380234554,1755621046321,-1160.94,0.00019726,2]
[380234555,1755621046331,-480.0,0.00019726,2]
[380234557,1755621046340,-563.81635792,0.00019726,2]
[380234559,1755621046349,-167.803922,0.00019726,2]
[380234561,1755621046358,-480.0,0.00019726,2]
[380234562,1755621046368,-480.0,0.00019726,2]
[380234563,1755621046377,-151.0,0.00019726,2]
[380234564,1755621046387,-151.0,0.00019726,2]
[380234565,1755621046396,-183.669411,0.00019726,2]
[380234566,1755621046405,-480.0,0.00019726,2]
[380234567,1755621046415,-151.0,0.00019726,2]
[380234568,1755621046424,-151.0,0.00019726,2]
[380234569,1755621046433,-183.669411,0.00019726,2]
[380234570,1755621046442,-151.0,0.00019726,2]
[380234571,1755621046451,-151.0,0.00019726,2]
[380234572,1755621046460,-183.669411,0.00019726,2]
[380234573,1755621046469,-235.2,0.00019726,2]
[380234574,1755621046478,-183.669411,0.00019726,2]
[380234575,1755621046488,-480.0,0.00019726,2]
[380234577,1755621046497,-480.0,0.00019726,2]
[380234578,1755621046506,-151.0,0.00019726,2]
[380234579,1755621046515,-151.0,0.00019726,2]
[380234580,1755621046524,-151.0,0.00019726,2]
[380234581,1755621046533,-151.0,0.00019726,2]